[Event "Titled Tuesday Blitz June 07 Late 2022"]
[White "Gurevich, Dmitry"]
[Black "Vajda, Levente"]
[WhiteFideId "2000407"]
[BlackFideId "1203975"]
[WhiteElo "2506"]
[BlackElo "2573"]
[Result "1-0"]
[Round "05"]
[TimeControl "180+1"]
[Date "2022.06.07"]
[WhiteClock "0:00:18"]
[BlackClock "0:00:13"]

1. d4 {[%clk 0:03:00]}  Nf6 {[%clk 0:02:59]} 2. c4 {[%clk 0:03:00]}  c5 {[%clk 0:02:58]} 3. Nf3 {[%clk 0:03:00]}  g6 {[%clk 0:02:58]} 4. d5 {[%clk 0:02:58]}  Bg7 {[%clk 0:02:58]} 5. Nc3 {[%clk 0:02:57]}  O-O {[%clk 0:02:59]} 6. e4 {[%clk 0:02:57]}  d6 {[%clk 0:02:58]} 7. h3 {[%clk 0:02:55]}  Na6 {[%clk 0:02:57]} 8. Bd3 {[%clk 0:02:53]}  Nc7 {[%clk 0:02:57]} 9. O-O {[%clk 0:02:53]}  e6 {[%clk 0:02:54]} 10. Re1 {[%clk 0:02:49]}  exd5 {[%clk 0:02:52]} 11. cxd5 {[%clk 0:02:46]}  a6 {[%clk 0:02:53]} 12. a4 {[%clk 0:02:45]}  b6 {[%clk 0:02:53]} 13. Bf4 {[%clk 0:02:40]}  Bb7 {[%clk 0:02:29]} 14. Rb1 {[%clk 0:02:27]}  Re8 {[%clk 0:02:26]} 15. Qd2 {[%clk 0:02:22]}  Nh5 {[%clk 0:02:25]} 16. Bh2 {[%clk 0:02:16]}  Qd7 {[%clk 0:02:22]} 17. b4 {[%clk 0:02:11]}  Rab8 {[%clk 0:02:04]} 18. bxc5 {[%clk 0:02:09]}  bxc5 {[%clk 0:02:03]} 19. Rb6 {[%clk 0:02:04]}  Na8 {[%clk 0:01:40]} 20. Rxd6 {[%clk 0:02:02]}  Qc8 {[%clk 0:01:41]} 21. g4 {[%clk 0:01:36]}  Nf6 {[%clk 0:01:40]} 22. Qf4 {[%clk 0:01:30]}  Nd7 {[%clk 0:01:31]} 23. e5 {[%clk 0:01:16]}  c4 {[%clk 0:00:37]} 24. Bxc4 {[%clk 0:01:14]}  Nxe5 {[%clk 0:00:31]} 25. Nxe5 {[%clk 0:01:10]}  Bxe5 {[%clk 0:00:24]} 26. Rxe5 {[%clk 0:01:09]}  Rxe5 {[%clk 0:00:24]} 27. Qxe5 {[%clk 0:01:08]}  Qxc4 {[%clk 0:00:25]} 28. Rc6 {[%clk 0:01:03]}  Bxc6 {[%clk 0:00:21]} 29. Qxb8+ {[%clk 0:01:02]}  Kg7 {[%clk 0:00:22]} 30. dxc6 {[%clk 0:00:57]}  Qxc6 {[%clk 0:00:15]} 31. Be5+ {[%clk 0:00:53]}  f6 {[%clk 0:00:15]} 32. Qa7+ {[%clk 0:00:48]}  Kh6 {[%clk 0:00:14]} 33. Qe3+ {[%clk 0:00:47]}  g5 {[%clk 0:00:13]} 34. Bd4 {[%clk 0:00:45]}  Nc7 {[%clk 0:00:13]} 35. f3 {[%clk 0:00:32]}  Kg6 {[%clk 0:00:13]} 36. Qe4+ {[%clk 0:00:31]}  Qxe4 {[%clk 0:00:13]} 37. Nxe4 {[%clk 0:00:30]}  Nd5 {[%clk 0:00:13]} 38. Nxf6 {[%clk 0:00:23]}  Nxf6 {[%clk 0:00:13]} 39. Bxf6 {[%clk 0:00:23]}  Kxf6 {[%clk 0:00:14]} 40. Kf2 {[%clk 0:00:23]}  Ke5 {[%clk 0:00:07]} 41. Ke3 {[%clk 0:00:19]}  Kd5 {[%clk 0:00:08]} 42. f4 {[%clk 0:00:16]}  gxf4+ {[%clk 0:00:08]} 43. Kxf4 {[%clk 0:00:16]}  Kc4 {[%clk 0:00:09]} 44. Kg5 {[%clk 0:00:16]}  Kb4 {[%clk 0:00:09]} 45. Kh6 {[%clk 0:00:17]}  Kxa4 {[%clk 0:00:10]} 46. Kxh7 {[%clk 0:00:17]}  Kb4 {[%clk 0:00:09]} 47. g5 {[%clk 0:00:17]}  a5 {[%clk 0:00:10]} 48. g6 {[%clk 0:00:18]}  a4 {[%clk 0:00:11]} 49. g7 {[%clk 0:00:18]}  a3 {[%clk 0:00:12]} 50. g8=Q {[%clk 0:00:18]}  a2 {[%clk 0:00:13]} 51. Qxa2 {[%clk 0:00:18]} 1-0


[Site "https://www.chess.com"]

[Event "Titled Tuesday Blitz June 07 Late 2022"]
[White "Halkias, Stelios"]
[Black "Svane, Rasmus"]
[WhiteFideId "4201809"]
[BlackFideId "4657101"]
[WhiteElo "2453"]
[BlackElo "2674"]
[Result "0-1"]
[Round "05"]
[TimeControl "180+1"]
[Date "2022.06.07"]
[WhiteClock "0:01:20"]
[BlackClock "0:01:48"]

1. Nf3 {[%clk 0:03:00]}  d5 {[%clk 0:02:59]} 2. d4 {[%clk 0:03:00]}  Nf6 {[%clk 0:02:57]} 3. c4 {[%clk 0:03:00]}  e6 {[%clk 0:02:57]} 4. g3 {[%clk 0:03:00]}  Bb4+ {[%clk 0:02:57]} 5. Nc3 {[%clk 0:02:58]}  O-O {[%clk 0:02:56]} 6. Bg2 {[%clk 0:02:57]}  dxc4 {[%clk 0:02:56]} 7. a3 {[%clk 0:02:57]}  Bxc3+ {[%clk 0:02:55]} 8. bxc3 {[%clk 0:02:57]}  c5 {[%clk 0:02:56]} 9. O-O {[%clk 0:02:54]}  cxd4 {[%clk 0:02:56]} 10. cxd4 {[%clk 0:02:54]}  Bd7 {[%clk 0:02:56]} 11. Bg5 {[%clk 0:02:14]}  Bc6 {[%clk 0:02:51]} 12. Qc2 {[%clk 0:02:14]}  b5 {[%clk 0:02:38]} 13. a4 {[%clk 0:02:12]}  a6 {[%clk 0:02:38]} 14. Rfb1 {[%clk 0:01:59]}  Nbd7 {[%clk 0:02:35]} 15. Ne5 {[%clk 0:01:57]}  Bxg2 {[%clk 0:02:31]} 16. Kxg2 {[%clk 0:01:56]}  Nxe5 {[%clk 0:02:31]} 17. dxe5 {[%clk 0:01:41]}  Qd5+ {[%clk 0:02:31]} 18. f3 {[%clk 0:01:40]}  Qxe5 {[%clk 0:02:31]} 19. Bxf6 {[%clk 0:01:38]}  gxf6 {[%clk 0:02:27]} 20. Ra2 {[%clk 0:01:31]}  Rfd8 {[%clk 0:02:11]} 21. Rba1 {[%clk 0:01:23]}  Rac8 {[%clk 0:02:06]} 22. axb5 {[%clk 0:01:21]}  axb5 {[%clk 0:02:07]} 23. Ra7 {[%clk 0:01:21]}  c3 {[%clk 0:02:00]} 24. Rd1 {[%clk 0:01:21]}  Rxd1 {[%clk 0:01:56]} 25. Qxd1 {[%clk 0:01:20]}  c2 {[%clk 0:01:48]} 0-1


[Site "https://www.chess.com"]

[Event "Titled Tuesday Blitz June 07 Late 2022"]
[White "Hosseinzadeh, Nima"]
[Black "Rasulov, Vugar"]
[WhiteFideId "12505323"]
[BlackFideId "13402390"]
[WhiteElo "2066"]
[BlackElo "2560"]
[Result "1-0"]
[Round "05"]
[TimeControl "180+1"]
[Date "2022.06.07"]
[WhiteClock "0:00:25"]
[BlackClock "0:01:04"]

1. e4 {[%clk 0:01:32]}  c5 {[%clk 0:02:58]} 2. Nf3 {[%clk 0:01:32]}  d6 {[%clk 0:02:59]} 3. d4 {[%clk 0:01:32]}  cxd4 {[%clk 0:03:00]} 4. Nxd4 {[%clk 0:01:33]}  Nf6 {[%clk 0:03:00]} 5. Nc3 {[%clk 0:01:34]}  Nc6 {[%clk 0:03:01]} 6. Bg5 {[%clk 0:01:33]}  a6 {[%clk 0:03:00]} 7. Qd2 {[%clk 0:01:30]}  e6 {[%clk 0:02:59]} 8. O-O-O {[%clk 0:01:29]}  h6 {[%clk 0:02:58]} 9. Nxc6 {[%clk 0:01:28]}  bxc6 {[%clk 0:02:58]} 10. Bf4 {[%clk 0:01:29]}  d5 {[%clk 0:02:58]} 11. Be2 {[%clk 0:01:24]}  Bb4 {[%clk 0:02:54]} 12. Qe3 {[%clk 0:01:23]}  Qa5 {[%clk 0:02:44]} 13. Be5 {[%clk 0:01:06]}  O-O {[%clk 0:02:33]} 14. Bxf6 {[%clk 0:00:47]}  gxf6 {[%clk 0:02:34]} 15. Qxh6 {[%clk 0:00:48]}  dxe4 {[%clk 0:02:09]} 16. Nxe4 {[%clk 0:00:44]}  Be7 {[%clk 0:02:06]} 17. Rd3 {[%clk 0:00:44]}  Qf5 {[%clk 0:01:16]} 18. Rg3+ {[%clk 0:00:38]}  Qg6 {[%clk 0:01:17]} 19. Bh5 {[%clk 0:00:28]}  Qg5+ {[%clk 0:01:03]} 20. Nxg5 {[%clk 0:00:24]}  fxg5 {[%clk 0:01:04]} 21. Bg6 {[%clk 0:00:25]} 1-0


[Site "https://www.chess.com"]

[Event "Titled Tuesday Blitz June 07 Late 2022"]
[White "Jaracz, Pawel"]
[Black "Ferreira, Vitor Hugo Vieira"]
[WhiteFideId "1102222"]
[BlackFideId "2119765"]
[WhiteElo "2459"]
[BlackElo "2165"]
[Result "1/2-1/2"]
[Round "05"]
[TimeControl "180+1"]
[Date "2022.06.07"]
[WhiteClock "0:00:07"]
[BlackClock "0:00:01"]

1. d4 {[%clk 0:03:00]}  d5 {[%clk 0:02:58]} 2. c4 {[%clk 0:03:00]}  c6 {[%clk 0:02:58]} 3. Nf3 {[%clk 0:03:00]}  Nf6 {[%clk 0:02:58]} 4. Nc3 {[%clk 0:02:59]}  e6 {[%clk 0:02:58]} 5. Bg5 {[%clk 0:02:57]}  Nbd7 {[%clk 0:02:58]} 6. e3 {[%clk 0:02:57]}  Qa5 {[%clk 0:02:57]} 7. Bxf6 {[%clk 0:02:56]}  Nxf6 {[%clk 0:02:56]} 8. a3 {[%clk 0:02:53]}  Ne4 {[%clk 0:02:49]} 9. Qb3 {[%clk 0:02:39]}  Nxc3 {[%clk 0:02:44]} 10. bxc3 {[%clk 0:02:38]}  Bd6 {[%clk 0:02:38]} 11. Be2 {[%clk 0:02:32]}  O-O {[%clk 0:02:38]} 12. O-O {[%clk 0:02:31]}  b6 {[%clk 0:02:32]} 13. cxd5 {[%clk 0:02:22]}  cxd5 {[%clk 0:02:32]} 14. c4 {[%clk 0:02:21]}  Ba6 {[%clk 0:02:30]} 15. Rfc1 {[%clk 0:02:21]}  Rac8 {[%clk 0:02:27]} 16. Bf1 {[%clk 0:02:08]}  dxc4 {[%clk 0:02:22]} 17. Bxc4 {[%clk 0:02:08]}  Bxc4 {[%clk 0:01:48]} 18. Rxc4 {[%clk 0:02:08]}  Rxc4 {[%clk 0:01:48]} 19. Qxc4 {[%clk 0:02:09]}  b5 {[%clk 0:01:49]} 20. Qb3 {[%clk 0:02:01]}  Rc8 {[%clk 0:01:43]} 21. g3 {[%clk 0:01:55]}  Rc3 {[%clk 0:01:39]} 22. Qb2 {[%clk 0:01:50]}  Bxa3 {[%clk 0:01:35]} 23. Qe2 {[%clk 0:01:42]}  Rc1+ {[%clk 0:01:31]} 24. Rxc1 {[%clk 0:01:42]}  Bxc1 {[%clk 0:01:32]} 25. Ne5 {[%clk 0:01:42]}  Ba3 {[%clk 0:01:09]} 26. Qa2 {[%clk 0:01:17]}  Qe1+ {[%clk 0:00:39]} 27. Kg2 {[%clk 0:01:16]}  Qc1 {[%clk 0:00:39]} 28. Qb3 {[%clk 0:01:11]}  a6 {[%clk 0:00:35]} 29. d5 {[%clk 0:00:53]}  Bd6 {[%clk 0:00:30]} 30. dxe6 {[%clk 0:00:38]}  Bxe5 {[%clk 0:00:28]} 31. Qd5 {[%clk 0:00:34]}  Qc7 {[%clk 0:00:25]} 32. Qa8+ {[%clk 0:00:20]}  Qb8 {[%clk 0:00:25]} 33. Qxa6 {[%clk 0:00:20]}  fxe6 {[%clk 0:00:22]} 34. Qxe6+ {[%clk 0:00:20]}  Kh8 {[%clk 0:00:23]} 35. f4 {[%clk 0:00:20]}  Bf6 {[%clk 0:00:22]} 36. g4 {[%clk 0:00:20]}  h6 {[%clk 0:00:22]} 37. Kg3 {[%clk 0:00:19]}  b4 {[%clk 0:00:21]} 38. Qb3 {[%clk 0:00:19]}  Bc3 {[%clk 0:00:19]} 39. h4 {[%clk 0:00:20]}  Qe8 {[%clk 0:00:19]} 40. Kf2 {[%clk 0:00:18]}  Bd2 {[%clk 0:00:18]} 41. g5 {[%clk 0:00:17]}  hxg5 {[%clk 0:00:17]} 42. hxg5 {[%clk 0:00:18]}  Qh5 {[%clk 0:00:10]} 43. Qe6 {[%clk 0:00:10]}  Qh2+ {[%clk 0:00:10]} 44. Kf3 {[%clk 0:00:11]}  Qh1+ {[%clk 0:00:10]} 45. Ke2 {[%clk 0:00:11]}  Qg2+ {[%clk 0:00:09]} 46. Kd3 {[%clk 0:00:11]}  Bc3 {[%clk 0:00:07]} 47. g6 {[%clk 0:00:12]}  Qf1+ {[%clk 0:00:07]} 48. Ke4 {[%clk 0:00:11]}  Qb1+ {[%clk 0:00:06]} 49. Kf3 {[%clk 0:00:10]}  Qd1+ {[%clk 0:00:04]} 50. Ke4 {[%clk 0:00:08]}  Qc2+ {[%clk 0:00:04]} 51. Kf3 {[%clk 0:00:07]}  Qd1+ {[%clk 0:00:04]} 52. Ke4 {[%clk 0:00:07]}  Qc2+ {[%clk 0:00:02]} 53. Kf3 {[%clk 0:00:07]}  Qd1+ {[%clk 0:00:01]} 1/2-1/2


[Site "https://www.chess.com"]

[Event "Titled Tuesday Blitz June 07 Late 2022"]
[White "Larino Nieto, David"]
[Black "Cruz Mendez, Jean Marco"]
[WhiteFideId "2256444"]
[BlackFideId "3526402"]
[WhiteElo "2532"]
[BlackElo "2064"]
[Result "1-0"]
[Round "05"]
[TimeControl "180+1"]
[Date "2022.06.07"]
[WhiteClock "0:00:03"]
[BlackClock "0:00:06"]

1. Nf3 {[%clk 0:03:00]}  Nf6 {[%clk 0:02:58]} 2. b3 {[%clk 0:03:01]}  g6 {[%clk 0:02:57]} 3. Bb2 {[%clk 0:03:02]}  Bg7 {[%clk 0:02:57]} 4. g3 {[%clk 0:03:02]}  O-O {[%clk 0:02:57]} 5. Bg2 {[%clk 0:03:03]}  d6 {[%clk 0:02:58]} 6. O-O {[%clk 0:03:01]}  e5 {[%clk 0:02:58]} 7. d3 {[%clk 0:03:01]}  Nc6 {[%clk 0:02:56]} 8. c4 {[%clk 0:03:02]}  h5 {[%clk 0:02:52]} 9. Nc3 {[%clk 0:03:02]}  Ne7 {[%clk 0:02:51]} 10. h3 {[%clk 0:03:00]}  Bf5 {[%clk 0:02:47]} 11. Ng5 {[%clk 0:02:58]}  c6 {[%clk 0:02:43]} 12. Kh2 {[%clk 0:02:57]}  Bh6 {[%clk 0:02:39]} 13. f4 {[%clk 0:02:56]}  Nd7 {[%clk 0:02:22]} 14. e4 {[%clk 0:02:54]}  Bxg5 {[%clk 0:02:21]} 15. fxg5 {[%clk 0:02:45]}  Be6 {[%clk 0:02:20]} 16. Qd2 {[%clk 0:02:32]}  Kg7 {[%clk 0:02:08]} 17. Nd5 {[%clk 0:02:28]}  Bxd5 {[%clk 0:02:04]} 18. cxd5 {[%clk 0:02:29]}  c5 {[%clk 0:02:05]} 19. Rf2 {[%clk 0:02:04]}  Ng8 {[%clk 0:01:54]} 20. Raf1 {[%clk 0:01:59]}  a5 {[%clk 0:01:53]} 21. a4 {[%clk 0:01:58]}  b6 {[%clk 0:01:51]} 22. g4 {[%clk 0:01:22]}  hxg4 {[%clk 0:01:35]} 23. hxg4 {[%clk 0:01:23]}  f6 {[%clk 0:01:30]} 24. gxf6+ {[%clk 0:01:18]}  Rxf6 {[%clk 0:01:30]} 25. g5 {[%clk 0:01:00]}  Rxf2 {[%clk 0:01:22]} 26. Qxf2 {[%clk 0:01:01]}  Qe7 {[%clk 0:01:17]} 27. Qg3 {[%clk 0:00:42]}  Rf8 {[%clk 0:01:16]} 28. Qg4 {[%clk 0:00:36]}  Rxf1 {[%clk 0:01:14]} 29. Bxf1 {[%clk 0:00:36]}  Qf7 {[%clk 0:01:11]} 30. Kg1 {[%clk 0:00:35]}  Nf8 {[%clk 0:01:03]} 31. Bc1 {[%clk 0:00:35]}  Qc7 {[%clk 0:01:01]} 32. Be3 {[%clk 0:00:35]}  Qd8 {[%clk 0:01:00]} 33. Bh3 {[%clk 0:00:35]}  Qc7 {[%clk 0:01:00]} 34. Qe2 {[%clk 0:00:35]}  Qd8 {[%clk 0:01:00]} 35. Kg2 {[%clk 0:00:36]}  Qc7 {[%clk 0:01:00]} 36. Qc2 {[%clk 0:00:36]}  Qd8 {[%clk 0:01:00]} 37. Qc4 {[%clk 0:00:36]}  Qc7 {[%clk 0:00:56]} 38. Qb5 {[%clk 0:00:36]}  Kf7 {[%clk 0:00:53]} 39. Qc6 {[%clk 0:00:34]}  Qxc6 {[%clk 0:00:37]} 40. dxc6 {[%clk 0:00:33]}  Ne7 {[%clk 0:00:38]} 41. Bd7 {[%clk 0:00:19]}  Ne6 {[%clk 0:00:29]} 42. Kf3 {[%clk 0:00:19]}  Nc7 {[%clk 0:00:28]} 43. Ke2 {[%clk 0:00:19]}  Ng8 {[%clk 0:00:21]} 44. Kd2 {[%clk 0:00:19]}  Ke7 {[%clk 0:00:22]} 45. Kc2 {[%clk 0:00:19]}  Kd8 {[%clk 0:00:22]} 46. Kc3 {[%clk 0:00:19]}  Ne7 {[%clk 0:00:23]} 47. Kc4 {[%clk 0:00:19]}  Ng8 {[%clk 0:00:20]} 48. Bd2 {[%clk 0:00:20]}  Ne7 {[%clk 0:00:20]} 49. Bc1 {[%clk 0:00:20]}  Ng8 {[%clk 0:00:20]} 50. Bb2 {[%clk 0:00:21]}  Ne7 {[%clk 0:00:21]} 51. Bc3 {[%clk 0:00:20]}  Ng8 {[%clk 0:00:21]} 52. Ba1 {[%clk 0:00:20]}  Ne7 {[%clk 0:00:21]} 53. Bb2 {[%clk 0:00:21]}  Ng8 {[%clk 0:00:21]} 54. b4 {[%clk 0:00:22]}  axb4 {[%clk 0:00:21]} 55. Bc1 {[%clk 0:00:19]}  Ne7 {[%clk 0:00:21]} 56. Be3 {[%clk 0:00:19]}  Ng8 {[%clk 0:00:21]} 57. Bf2 {[%clk 0:00:20]}  Ne7 {[%clk 0:00:21]} 58. Bg3 {[%clk 0:00:20]}  Ng8 {[%clk 0:00:16]} 59. d4 {[%clk 0:00:21]}  cxd4 {[%clk 0:00:15]} 60. Kxb4 {[%clk 0:00:21]}  Ne7 {[%clk 0:00:15]} 61. Kc4 {[%clk 0:00:21]}  Na8 {[%clk 0:00:11]} 62. Kb5 {[%clk 0:00:18]}  Kc7 {[%clk 0:00:11]} 63. Be1 {[%clk 0:00:17]}  Kb8 {[%clk 0:00:08]} 64. Bb4 {[%clk 0:00:13]}  Kc7 {[%clk 0:00:08]} 65. a5 {[%clk 0:00:10]}  bxa5 {[%clk 0:00:05]} 66. Bxa5+ {[%clk 0:00:11]}  Kb8 {[%clk 0:00:05]} 67. Bd8 {[%clk 0:00:10]}  Nc7+ {[%clk 0:00:05]} 68. Kb6 {[%clk 0:00:09]}  Ned5+ {[%clk 0:00:04]} 69. exd5 {[%clk 0:00:09]}  Nxd5+ {[%clk 0:00:05]} 70. Kb5 {[%clk 0:00:09]}  Nc7+ {[%clk 0:00:06]} 71. Kc4 {[%clk 0:00:08]}  d5+ {[%clk 0:00:05]} 72. Kd3 {[%clk 0:00:08]}  Nb5 {[%clk 0:00:04]} 73. Be6 {[%clk 0:00:04]}  e4+ {[%clk 0:00:04]} 74. Kd2 {[%clk 0:00:03]}  e3+ {[%clk 0:00:05]} 75. Kd3 {[%clk 0:00:03]}  Nc3 {[%clk 0:00:05]} 76. c7+ {[%clk 0:00:02]}  Ka7 {[%clk 0:00:06]} 77. c8=Q {[%clk 0:00:03]} 1-0


[Site "https://www.chess.com"]

[Event "Titled Tuesday Blitz June 07 Late 2022"]
[White "Le Goff, Ronan"]
[Black "Lobanov, Sergei"]
[WhiteFideId "612073"]
[BlackFideId "24183750"]
[WhiteElo "2276"]
[BlackElo "2524"]
[Result "0-1"]
[Round "05"]
[TimeControl "180+1"]
[Date "2022.06.07"]
[WhiteClock "0:00:19"]
[BlackClock "0:00:12"]

1. d4 {[%clk 0:02:52]}  Nf6 {[%clk 0:02:59]} 2. Bf4 {[%clk 0:02:48]}  d5 {[%clk 0:02:58]} 3. Nc3 {[%clk 0:02:47]}  c5 {[%clk 0:02:56]} 4. e3 {[%clk 0:02:43]}  cxd4 {[%clk 0:02:56]} 5. exd4 {[%clk 0:02:42]}  Bg4 {[%clk 0:02:57]} 6. Be2 {[%clk 0:02:41]}  Bxe2 {[%clk 0:02:56]} 7. Qxe2 {[%clk 0:02:41]}  e6 {[%clk 0:02:32]} 8. Nb5 {[%clk 0:02:30]}  Na6 {[%clk 0:02:32]} 9. Nf3 {[%clk 0:02:28]}  Be7 {[%clk 0:02:32]} 10. h3 {[%clk 0:02:26]}  O-O {[%clk 0:02:32]} 11. O-O {[%clk 0:02:26]}  Qb6 {[%clk 0:02:24]} 12. a4 {[%clk 0:02:22]}  Nb4 {[%clk 0:02:07]} 13. c3 {[%clk 0:02:11]}  Nc6 {[%clk 0:02:08]} 14. Bc7 {[%clk 0:01:47]}  Qa6 {[%clk 0:02:07]} 15. Rfe1 {[%clk 0:01:46]}  Rfc8 {[%clk 0:02:02]} 16. Bh2 {[%clk 0:01:45]}  Qb6 {[%clk 0:01:50]} 17. Ne5 {[%clk 0:01:36]}  Nxe5 {[%clk 0:01:31]} 18. Bxe5 {[%clk 0:01:30]}  a6 {[%clk 0:01:31]} 19. Na3 {[%clk 0:01:27]}  Qb3 {[%clk 0:01:28]} 20. Qc2 {[%clk 0:01:20]}  Qxc2 {[%clk 0:01:25]} 21. Nxc2 {[%clk 0:01:21]}  Nd7 {[%clk 0:01:22]} 22. Bg3 {[%clk 0:01:20]}  Nb6 {[%clk 0:01:17]} 23. Ne3 {[%clk 0:01:14]}  Kf8 {[%clk 0:01:04]} 24. Re2 {[%clk 0:00:57]}  Nc4 {[%clk 0:00:46]} 25. Ng4 {[%clk 0:00:56]}  h5 {[%clk 0:00:35]} 26. Ne5 {[%clk 0:00:56]}  h4 {[%clk 0:00:34]} 27. Bh2 {[%clk 0:00:47]}  Nxe5 {[%clk 0:00:33]} 28. Bxe5 {[%clk 0:00:47]}  g6 {[%clk 0:00:24]} 29. Bf4 {[%clk 0:00:45]}  Ke8 {[%clk 0:00:22]} 30. f3 {[%clk 0:00:36]}  Kd7 {[%clk 0:00:22]} 31. Kf2 {[%clk 0:00:36]}  b5 {[%clk 0:00:22]} 32. axb5 {[%clk 0:00:35]}  axb5 {[%clk 0:00:23]} 33. Rxa8 {[%clk 0:00:35]}  Rxa8 {[%clk 0:00:24]} 34. Ke1 {[%clk 0:00:34]}  b4 {[%clk 0:00:23]} 35. Kd2 {[%clk 0:00:34]}  Kc6 {[%clk 0:00:18]} 36. Kc2 {[%clk 0:00:32]}  Kb5 {[%clk 0:00:18]} 37. Kb3 {[%clk 0:00:31]}  Ra1 {[%clk 0:00:16]} 38. Bd2 {[%clk 0:00:29]}  bxc3 {[%clk 0:00:14]} 39. Bxc3 {[%clk 0:00:29]}  Rd1 {[%clk 0:00:14]} 40. Kc2 {[%clk 0:00:27]}  Rg1 {[%clk 0:00:13]} 41. Kb3 {[%clk 0:00:27]}  Bd6 {[%clk 0:00:13]} 42. Be1 {[%clk 0:00:23]}  Be7 {[%clk 0:00:11]} 43. Bd2 {[%clk 0:00:23]}  Bf6 {[%clk 0:00:11]} 44. Be3 {[%clk 0:00:22]}  Rd1 {[%clk 0:00:11]} 45. Kc2 {[%clk 0:00:22]}  Ra1 {[%clk 0:00:11]} 46. Kb3 {[%clk 0:00:22]}  Ra4 {[%clk 0:00:11]} 47. Rc2 {[%clk 0:00:22]}  Bxd4 {[%clk 0:00:05]} 48. Bg5 {[%clk 0:00:22]}  Rb4+ {[%clk 0:00:05]} 49. Ka2 {[%clk 0:00:22]}  Rc4 {[%clk 0:00:05]} 50. Rxc4 {[%clk 0:00:20]}  Kxc4 {[%clk 0:00:05]} 51. Bxh4 {[%clk 0:00:20]}  Bc5 {[%clk 0:00:04]} 52. Be1 {[%clk 0:00:20]}  d4 {[%clk 0:00:03]} 53. Kb1 {[%clk 0:00:18]}  Kd3 {[%clk 0:00:03]} 54. Kc1 {[%clk 0:00:17]}  Ke2 {[%clk 0:00:04]} 55. Bd2 {[%clk 0:00:16]}  d3 {[%clk 0:00:04]} 56. b4 {[%clk 0:00:16]}  Bb6 {[%clk 0:00:03]} 57. b5 {[%clk 0:00:17]}  f5 {[%clk 0:00:03]} 58. h4 {[%clk 0:00:17]}  e5 {[%clk 0:00:04]} 59. g4 {[%clk 0:00:16]}  e4 {[%clk 0:00:04]} 60. h5 {[%clk 0:00:14]}  e3 {[%clk 0:00:04]} 61. Bxe3 {[%clk 0:00:09]}  Bxe3+ {[%clk 0:00:05]} 62. Kb2 {[%clk 0:00:08]}  d2 {[%clk 0:00:05]} 63. hxg6 {[%clk 0:00:09]}  d1=Q {[%clk 0:00:06]} 64. g7 {[%clk 0:00:09]}  Bd4+ {[%clk 0:00:06]} 65. Ka3 {[%clk 0:00:09]}  Bxg7 {[%clk 0:00:06]} 66. gxf5 {[%clk 0:00:09]}  Qd5 {[%clk 0:00:06]} 67. b6 {[%clk 0:00:10]}  Qb7 {[%clk 0:00:06]} 68. f6 {[%clk 0:00:11]}  Bxf6 {[%clk 0:00:06]} 69. f4 {[%clk 0:00:11]}  Ke3 {[%clk 0:00:07]} 70. f5 {[%clk 0:00:12]}  Kf4 {[%clk 0:00:07]} 71. Ka4 {[%clk 0:00:13]}  Kxf5 {[%clk 0:00:08]} 72. Kb5 {[%clk 0:00:14]}  Ke6 {[%clk 0:00:09]} 73. Kc4 {[%clk 0:00:15]}  Kd6 {[%clk 0:00:09]} 74. Kd3 {[%clk 0:00:15]}  Kd5 {[%clk 0:00:10]} 75. Kc2 {[%clk 0:00:16]}  Qxb6 {[%clk 0:00:10]} 76. Kd3 {[%clk 0:00:17]}  Qb3+ {[%clk 0:00:10]} 77. Ke2 {[%clk 0:00:17]}  Bd8 {[%clk 0:00:11]} 78. Kd2 {[%clk 0:00:17]}  Ke4 {[%clk 0:00:11]} 79. Kc1 {[%clk 0:00:18]}  Qa2 {[%clk 0:00:11]} 80. Kd1 {[%clk 0:00:18]}  Kd3 {[%clk 0:00:12]} 81. Kc1 {[%clk 0:00:19]}  Qc2# {[%clk 0:00:12]} 0-1


[Site "https://www.chess.com"]